bitfinex-derivatives/quotes_BTCF0:USTF0_20251009
["timestamp","ask_amount","ask_price","bid_price","bid_amount"]
[1760023468278,0.04297329,121200.0,121190.0,0.3628]
[1760023468482,0.11027329,121200.0,121190.0,0.3628]
[1760023468681,0.11027329,121200.0,121190.0,1.11448]
[1760023468979,0.11027329,121200.0,121190.0,0.3628]
[1760023469181,0.11027329,121200.0,121190.0,1.11448]
[1760023469576,0.11027329,121200.0,121190.0,0.75372]
[1760023469879,0.11027329,121200.0,121190.0,0.002]
[1760023470384,0.19274849,121200.0,121190.0,0.75372]
[1760023470681,0.19274849,121200.0,121190.0,1.11452]
[1760023470979,0.19274849,121200.0,121190.0,1.197042]
[1760023471176,0.04297329,121200.0,121190.0,0.83047625]
[1760023471381,0.04297329,121200.0,121190.0,1.23047625]
[1760023471980,0.04297329,121200.0,121190.0,1.98223625]
[1760023472575,0.19274849,121200.0,121190.0,0.74799425]
[1760023472781,0.19274849,121200.0,121190.0,1.197082]
[1760023472974,0.12544849,121200.0,121190.0,1.197042]
[1760023473174,0.12544849,121200.0,121190.0,0.83047625]
[1760023473379,0.12544849,121200.0,121190.0,1.58223625]
[1760023473580,0.04297329,121200.0,121190.0,1.197042]
[1760023473877,0.04297329,121200.0,121190.0,1.58227625]
[1760023474085,0.04297329,121200.0,121190.0,1.23047625]
[1760023474386,8.329e-05,121200.0,121190.0,1.98227625]
[1760023474773,8.329e-05,121200.0,121190.0,1.23047625]
[1760023475084,8.329e-05,121200.0,121190.0,1.98227625]
[1760023477180,8.329e-05,121200.0,121190.0,4.04183625]
[1760023477378,8.329e-05,121200.0,121190.0,4.04179625]
[1760023477580,0.04297329,121200.0,121190.0,0.3628]
[1760023477889,0.04297329,121200.0,121190.0,0.002]
[1760023477890,0.19274849,121200.0,121190.0,0.002]
[1760023478079,0.19274849,121200.0,121190.0,0.7538]
[1760023478283,0.19274849,121200.0,121190.0,0.3628]
[1760023478581,1.33874274,121200.0,121190.0,0.002]
[1760023478978,0.59274849,121200.0,121190.0,0.7538]
[1760023479175,0.97794274,121200.0,121190.0,0.7538]
[1760023479778,0.97794274,121200.0,121190.0,0.083482]
[1760023479779,0.19374849,121200.0,121190.0,0.083482]
[1760023479975,0.11127329,121200.0,121190.0,1.11364]
[1760023480175,0.11127329,121200.0,121190.0,0.75184]
[1760023480388,0.198092,121190.0,121180.0,0.4432842]
[1760023480586,0.1980988,121180.0,121170.0,0.3608]
[1760023480884,0.1980988,121180.0,121170.0,1.11264]
[1760023481086,0.2215386,121180.0,121170.0,0.4432956]
[1760023481286,0.24695124,121180.0,121170.0,1.1951356]
[1760023481491,0.24695124,121180.0,121170.0,0.4432956]
[1760023481676,0.16446244,121180.0,121170.0,1.1951756]
[1760023482488,0.24705475,121180.0,121170.0,1.11268]
[1760023482786,0.06612331,121180.0,121170.0,0.82848985]
[1760023483089,0.04268351,121180.0,121170.0,0.4432956]
[1760023483386,0.04268351,121180.0,121170.0,1.1951756]
[1760023483587,0.11571351,121180.0,121170.0,0.3608]
[1760023483790,0.1981192,121150.0,121140.0,9.528e-05]
[1760023484088,0.26421658,121150.0,121140.0,0.75549528]
[1760023484287,0.26421658,121150.0,121140.0,9.528e-05]
[1760023484487,0.26421658,121150.0,121140.0,0.75549528]
[1760023484786,0.18170738,121150.0,121140.0,0.36189528]
[1760023484983,0.10867738,121150.0,121140.0,1.19981128]
[1760023485187,0.10867738,121150.0,121140.0,1.20081128]
[1760023485985,0.10867738,121150.0,121140.0,0.44441128]
[1760023486186,0.10867738,121150.0,121140.0,1.19997128]
[1760023486480,0.10867738,121150.0,121140.0,1.19897128]
[1760023486786,0.18017738,121150.0,121140.0,1.19889128]
[1760023486980,0.18017738,121150.0,121140.0,1.19881128]
[1760023487179,0.18017738,121150.0,121140.0,0.36089528]
[1760023487380,0.64788083,121150.0,121140.0,0.36089528]
[1760023487582,0.64788083,121150.0,121140.0,0.75545528]
[1760023487781,0.18017738,121150.0,121140.0,1.11629528]
[1760023487982,0.18017738,121150.0,121140.0,0.36089528]
[1760023488181,0.18017738,121150.0,121140.0,1.19889128]
[1760023488383,0.18017738,121150.0,121140.0,0.44341128]
[1760023488583,0.18017738,121150.0,121140.0,1.19885128]
[1760023488784,0.26268658,121150.0,121140.0,1.11633528]
[1760023488985,0.26268658,121150.0,121140.0,1.11629528]
[1760023489392,0.18017738,121150.0,121140.0,0.36089528]
[1760023489589,0.18017738,121150.0,121140.0,1.11629528]
[1760023489789,0.64788083,121150.0,121140.0,1.11621528]
[1760023490180,1.79387508,121150.0,121140.0,9.528e-05]
[1760023490482,0.04186,121130.0,121120.0,1.1986497]
[1760023490687,0.04194617,121130.0,121120.0,1.1988897]
[1760023490878,7e-08,121130.0,121120.0,1.58408395]
[1760023491080,0.04186,121170.0,121160.0,0.0825024]
[1760023491282,0.04186,121170.0,121160.0,0.8041024]
[1760023491683,0.04186,121160.0,121150.0,0.4433092]
[1760023491880,0.04186,121160.0,121150.0,0.8433092]
[1760023492187,4.837e-05,121160.0,121150.0,1.98670345]
[1760023492579,4.837e-05,121160.0,121150.0,2.00804411]
[1760023493285,4.837e-05,121160.0,121150.0,1.62284986]
[1760023493485,4.837e-05,121160.0,121150.0,2.00804411]
[1760023493686,4.837e-05,121160.0,121150.0,1.25084411]
[1760023493888,4.837e-05,121160.0,121150.0,1.63603836]
[1760023494192,0.04186,121180.0,121170.0,0.0824956]
[1760023494392,0.04186,121180.0,121170.0,1.5625356]
[1760023494691,0.04186,121190.0,121180.0,0.0824888]
[1760023494985,0.04186,121200.0,121190.0,0.082482]
[1760023495189,0.04186,121200.0,121190.0,0.75012534]
[1760023495387,0.04186,121210.0,121200.0,0.0824752]
[1760023495593,0.04186,121210.0,121200.0,1.2020352]
[1760023495793,0.04186,121210.0,121200.0,1.50887854]
[1760023495986,0.04186,121210.0,121200.0,0.75011854]
[1760023496187,0.04186,121220.0,121210.0,0.0824684]
[1760023496387,0.06514942,121220.0,121210.0,1.50887174]
[1760023496589,0.04186,121220.0,121210.0,1.50887174]
[1760023496793,0.04186,121220.0,121210.0,1.90891174]
[1760023497590,0.04186,121230.0,121220.0,0.0824616]
[1760023497792,0.06515526,121230.0,121220.0,0.75010494]
[1760023498788,0.06615526,121230.0,121220.0,0.75010494]
[1760023500292,0.06615526,121230.0,121220.0,0.4432616]
[1760023500492,0.06615526,121230.0,121220.0,1.2015016]
[1760023500695,0.06615526,121230.0,121220.0,0.3608]
[1760023500891,0.06615526,121230.0,121220.0,1.11896]
[1760023501097,0.14861006,121230.0,121220.0,0.3608]
[1760023501297,0.14861006,121230.0,121220.0,1.11896]
[1760023501493,0.14861006,121230.0,121220.0,0.3608]
[1760023501796,0.14861006,121230.0,121220.0,1.11884]
[1760023502198,0.14861006,121230.0,121220.0,0.3608]
[1760023502393,0.1243216,121220.0,121210.0,0.42738825]
[1760023502589,0.1243284,121210.0,121200.0,2.503315]
[1760023502793,0.1243284,121210.0,121200.0,3.261395]
[1760023503088,0.14765357,121210.0,121200.0,1.201355]
[1760023503494,0.14765357,121210.0,121200.0,0.443275]
[1760023503695,0.21915357,121210.0,121200.0,0.3608]
[1760023503895,0.1243352,121200.0,121190.0,0.42776872]
[1760023504095,0.21916037,121200.0,121190.0,1.11896]
[1760023504499,0.24100941,121200.0,121190.0,0.3608]
[1760023504998,0.24100941,121200.0,121190.0,1.11896]
[1760023505296,0.24100941,121200.0,121190.0,0.3608]
[1760023505497,0.24100941,121200.0,121190.0,1.11896]
[1760023505498,0.64100941,121200.0,121190.0,1.11896]
[1760023505897,0.64200941,121200.0,121190.0,1.11896]
[1760023506098,0.195842,121190.0,121180.0,0.3608]
[1760023506295,0.21916717,121190.0,121180.0,0.75812]
[1760023506798,0.04186,121180.0,121170.0,0.50971746]
[1760023507192,0.04186,121180.0,121170.0,1.18518546]
[1760023507387,0.04186,121180.0,121170.0,1.26768106]
[1760023508305,0.14763705,121180.0,121170.0,1.26768106]
[1760023508490,0.14763705,121180.0,121170.0,0.50972106]
[1760023508694,0.06514825,121180.0,121170.0,1.26764106]
[1760023509296,0.14763705,121180.0,121170.0,0.50972106]
[1760023509498,0.14763705,121180.0,121170.0,1.26760106]
[1760023509799,0.13664825,121180.0,121170.0,0.50972106]
[1760023509994,0.06514825,121180.0,121170.0,0.50972106]
[1760023510195,0.06514825,121180.0,121170.0,1.26748106]
[1760023510404,0.06514825,121180.0,121170.0,1.26744106]
[1760023510602,0.06514825,121180.0,121170.0,0.50972106]
[1760023510603,0.06614825,121180.0,121170.0,0.50972106]
[1760023510797,0.06614825,121180.0,121170.0,1.26740106]
[1760023510993,0.06614825,121180.0,121170.0,0.50972106]
[1760023511396,0.06514825,121180.0,121170.0,1.26736106]
[1760023511899,0.14763705,121180.0,121170.0,0.50972106]
[1760023512093,0.14763705,121180.0,121170.0,1.26736106]
[1760023512299,0.06514825,121180.0,121170.0,1.26736106]
[1760023512496,0.06514825,121180.0,121170.0,0.50972106]
[1760023512701,0.06514825,121180.0,121170.0,1.26720106]
[1760023513701,0.06514825,121180.0,121170.0,0.50972106]
[1760023513999,0.04145,121170.0,121160.0,0.4432973]
[1760023514199,0.13663825,121170.0,121160.0,0.4432973]
[1760023514498,0.04145,121160.0,121150.0,0.44339294]
[1760023514705,0.06473825,121160.0,121150.0,0.44339294]
[1760023514905,0.06473825,121160.0,121150.0,1.50771628]
[1760023515600,0.06473825,121160.0,121150.0,1.20087294]
[1760023516002,0.06473825,121160.0,121150.0,1.26608835]
[1760023517404,0.06473825,121160.0,121150.0,1.26600835]
[1760023517604,0.06473825,121160.0,121150.0,0.50860835]
[1760023517804,0.06473825,121160.0,121150.0,1.26584835]
[1760023518395,0.14724065,121160.0,121150.0,0.50860835]
[1760023518600,0.21914065,121160.0,121150.0,1.26572835]
[1760023518900,0.06473825,121160.0,121150.0,0.50860835]
[1760023519206,0.04145,121160.0,121150.0,1.26572835]
[1760023519605,0.04145,121160.0,121150.0,1.26568835]
[1760023519606,0.1239524,121160.0,121150.0,1.26568835]
[1760023520100,0.06460639,121160.0,121150.0,0.50860835]
[1760023520305,0.06460639,121160.0,121150.0,1.26560835]
[1760023520505,0.06460639,121160.0,121150.0,0.50860835]
[1760023520710,0.06460639,121160.0,121150.0,1.26548835]
[1760023520902,0.06460639,121160.0,121150.0,1.26544835]
[1760023521206,0.04145,121160.0,121150.0,1.26544835]
[1760023522106,0.04145,121160.0,121150.0,1.57229169]
[1760023522305,0.1239524,121160.0,121150.0,0.37214459]
[1760023522503,0.21900889,121160.0,121150.0,0.42610125]
[1760023522701,0.21900889,121160.0,121150.0,1.26529045]
[1760023523208,0.14710889,121160.0,121150.0,1.26525045]
[1760023523416,0.06460649,121160.0,121150.0,1.26525045]
[1760023523603,0.14710889,121160.0,121150.0,0.50861045]
[1760023523805,0.14710889,121160.0,121150.0,1.57201379]
[1760023523806,0.06460649,121160.0,121150.0,1.57201379]
[1760023524000,0.14710889,121160.0,121150.0,1.57201379]
[1760023524202,0.14710415,121160.0,121150.0,1.26513045]
[1760023524609,0.21900415,121160.0,121150.0,1.18262125]
[1760023524805,0.14710415,121160.0,121150.0,1.26513045]
[1760023525312,0.21900415,121160.0,121150.0,0.42610125]
[1760023525510,0.21900415,121160.0,121150.0,0.36088584]
[1760023525707,0.97980415,121160.0,121150.0,8.584e-05]
[1760023526606,0.97980415,121160.0,121150.0,0.75648584]
[1760023526908,0.97980415,121160.0,121150.0,8.584e-05]
[1760023527305,0.97980415,121160.0,121150.0,0.75648584]
[1760023527915,0.97980415,121160.0,121150.0,8.584e-05]
[1760023528109,0.97980415,121160.0,121150.0,0.61460584]
[1760023528814,0.97980415,121160.0,121150.0,0.75640584]
[1760023529316,0.97980415,121160.0,121150.0,0.75628584]
[1760023530016,1.0464396,121160.0,121150.0,0.75620584]
[1760023531311,1.0464396,121160.0,121150.0,0.75624584]
[1760023531712,1.0464396,121160.0,121150.0,8.584e-05]
[1760023531912,0.6856396,121160.0,121150.0,0.75604584]
[1760023532215,0.61900415,121160.0,121150.0,0.75604584]
[1760023532616,0.61900415,121160.0,121150.0,8.584e-05]
[1760023532915,0.97980415,121160.0,121150.0,0.75600584]
[1760023533510,0.97980415,121160.0,121150.0,0.75596584]
[1760023533820,0.97980415,121160.0,121150.0,0.75588584]
[1760023534214,0.97980415,121160.0,121150.0,8.584e-05]
[1760023534413,0.97980415,121160.0,121150.0,0.75580584]
[1760023534710,0.14710415,121160.0,121150.0,1.19911504]
[1760023534909,0.14710415,121160.0,121150.0,0.75023838]
[1760023535114,0.1239524,121160.0,121150.0,1.11652584]
[1760023535411,0.14704355,121160.0,121150.0,1.11652584]
[1760023535716,0.14704361,121160.0,121150.0,1.11652584]
[1760023535912,0.06454121,121160.0,121150.0,1.15023838]
[1760023536113,0.04145,121160.0,121150.0,1.90647838]
[1760023536518,0.1239524,121160.0,121150.0,1.82396918]
[1760023536718,0.04145,121160.0,121150.0,1.90647838]
[1760023537016,0.1239524,121160.0,121150.0,1.06772918]
[1760023537218,0.1239524,121160.0,121150.0,1.90639838]
[1760023539410,0.1239524,121160.0,121150.0,1.90611838]
[1760023540619,0.1239524,121160.0,121150.0,1.90595838]
[1760023541215,0.04145,121160.0,121150.0,1.15023838]
[1760023541417,0.04186,121180.0,121170.0,0.0824956]
[1760023541622,0.04186,121190.0,121180.0,0.0824888]
[1760023541820,0.124342,121190.0,121180.0,1.50697214]
[1760023542824,0.04186,121190.0,121180.0,1.50697214]
[1760023543026,0.124342,121190.0,121180.0,1.52863513]
[1760023543220,0.124342,121190.0,121180.0,0.77179513]
[1760023543422,0.125342,121190.0,121180.0,1.5999688]
[1760023543621,0.125342,121190.0,121180.0,1.90681214]
[1760023543826,0.001,121190.0,121180.0,1.15013214]
[1760023544029,0.001,121190.0,121180.0,1.90709214]
[1760023544622,0.04225,121190.0,121180.0,1.90709214]
[1760023545425,0.124732,121190.0,121180.0,1.15013214]
[1760023545622,0.124732,121190.0,121180.0,1.6000088]
[1760023545822,0.124732,121190.0,121180.0,1.97209766]
[1760023546022,0.124732,121190.0,121180.0,1.66525432]
[1760023546324,0.04225,121190.0,121180.0,1.97209766]
[1760023547926,0.001,121190.0,121180.0,1.97209766]
[1760023548132,0.04013,121210.0,121200.0,0.0824752]
[1760023548327,0.04013,121210.0,121200.0,1.50651854]
[1760023548528,0.04013,121210.0,121200.0,1.86731854]
[1760023548832,0.04013,121220.0,121210.0,0.0824684]
[1760023549030,0.06321558,121220.0,121210.0,0.75011174]
[1760023549220,0.02308558,121220.0,121210.0,0.75011174]
[1760023549633,0.02308558,121220.0,121210.0,1.50719174]
[1760023550027,0.04125,121220.0,121210.0,1.2003484]
[1760023550228,0.06433181,121220.0,121210.0,1.50719174]
[1760023550428,0.04125,121220.0,121210.0,1.50719174]
[1760023550831,0.04125,121220.0,121210.0,0.75011174]
[1760023551130,0.04125,121220.0,121210.0,0.3608]
[1760023551335,0.1237184,121210.0,121200.0,2.42096]
[1760023551631,0.1237184,121210.0,121200.0,3.17792]
[1760023551828,0.1237252,121200.0,121190.0,0.4432808]
[1760023552036,0.04125,121200.0,121190.0,0.75012414]
[1760023552232,0.04125,121200.0,121190.0,1.50736414]
[1760023554938,0.04125,121200.0,121190.0,0.66764334]
[1760023555139,0.04125,121200.0,121190.0,1.50700534]
[1760023555340,0.04125,121200.0,121190.0,1.50696534]
[1760023555535,0.04125,121200.0,121190.0,0.75012534]
[1760023555740,0.04125,121210.0,121200.0,0.0824752]
[1760023555940,0.04125,121210.0,121200.0,0.75011854]
[1760023556240,0.04125,121210.0,121200.0,1.58585524]
[1760023556636,0.04125,121210.0,121200.0,0.82913524]
[1760023556840,0.04125,121210.0,121200.0,1.58581524]
[1760023557041,0.04125,121210.0,121200.0,1.58577524]
[1760023558038,0.04125,121220.0,121210.0,0.0824684]
[1760023558246,0.04125,121220.0,121210.0,1.58632844]
[1760023558646,0.04125,121230.0,121210.0,1.58632844]
[1760023558841,0.06429363,121230.0,121220.0,1.58636164]
[1760023559642,0.06429363,121230.0,121220.0,1.50390004]
[1760023559843,0.06429363,121230.0,121220.0,0.74666004]
[1760023560044,0.06429363,121230.0,121220.0,1.50394004]
[1760023560447,0.14674843,121230.0,121220.0,1.50394004]
[1760023560749,0.14674843,121230.0,121220.0,1.56903169]
[1760023561049,0.14774843,121230.0,121220.0,1.56903169]
[1760023561241,0.14874843,121230.0,121220.0,1.56903169]
[1760023561443,0.14874843,121230.0,121220.0,1.65149329]
[1760023562048,0.06629363,121230.0,121220.0,1.65149329]
[1760023562253,0.14874843,121230.0,121220.0,1.65125329]
[1760023563251,0.02504363,121230.0,121220.0,0.89425329]
[1760023563459,0.002,121230.0,121220.0,1.65109329]
[1760023563754,0.002,121230.0,121220.0,0.89425329]
[1760023563955,0.002,121230.0,121220.0,1.65105329]
[1760023564453,0.002,121230.0,121220.0,0.89425329]
[1760023564652,0.002,121230.0,121220.0,1.65101329]
[1760023564958,0.04325,121230.0,121220.0,0.89425329]
[1760023565155,0.04325,121230.0,121220.0,3.71061329]
[1760023565357,0.002,121230.0,121220.0,2.95397329]
[1760023565558,0.002,121230.0,121220.0,3.71057329]
[1760023565757,0.002,121230.0,121220.0,0.89425329]
[1760023565957,0.002,121230.0,121220.0,3.71049329]
[1760023566158,0.06625541,121230.0,121220.0,2.95393329]
[1760023566351,0.06625541,121230.0,121220.0,3.71041329]
[1760023566758,0.06625541,121230.0,121220.0,2.95393329]
[1760023566959,0.06625541,121230.0,121220.0,3.71033329]
[1760023567253,0.06625541,121230.0,121220.0,2.95393329]
[1760023567463,0.06625541,121230.0,121220.0,3.71025329]
[1760023568058,0.02500541,121230.0,121220.0,3.71009329]
[1760023568751,0.02500541,121230.0,121220.0,2.95385329]
[1760023569155,0.02500541,121230.0,121220.0,3.70993329]
[1760023569459,0.02500541,121230.0,121220.0,0.50839325]
[1760023569650,0.06533541,121230.0,121220.0,3.70981329]
[1760023570156,0.06533541,121230.0,121220.0,0.89425329]
[1760023570350,0.06533541,121230.0,121220.0,3.70977329]
[1760023570556,0.06533541,121230.0,121220.0,3.62731169]
[1760023570754,0.06533541,121230.0,121220.0,1.65017329]
[1760023570958,0.06533541,121230.0,121220.0,0.89425329]
[1760023571149,0.06533541,121230.0,121220.0,1.65017329]
[1760023573562,0.12919541,121230.0,121220.0,0.42593165]
[1760023573860,0.12919541,121230.0,121220.0,1.18145165]
[1760023574357,0.12919541,121230.0,121220.0,0.81179169]
[1760023574557,0.06533541,121230.0,121220.0,1.56731169]
[1760023574758,0.14779021,121230.0,121220.0,1.64977329]
[1760023575561,0.1247848,121230.0,121220.0,0.81179169]
[1760023575859,0.14777722,121230.0,121220.0,1.56719169]
[1760023576363,0.14777722,121230.0,121220.0,1.64965329]
[1760023576965,0.14777722,121230.0,121220.0,1.56719169]
[1760023577165,0.14777722,121230.0,121220.0,1.64965329]
[1760023578565,0.14777722,121230.0,121220.0,0.81179169]
[1760023578765,0.14777722,121230.0,121220.0,1.56691169]
[1760023579564,0.14777722,121230.0,121220.0,0.89425329]
[1760023579762,0.14777722,121230.0,121220.0,1.64921329]
[1760023580365,0.06532242,121230.0,121220.0,0.89425329]
[1760023580567,0.06532242,121230.0,121220.0,1.64917329]
[1760023580768,0.06532242,121230.0,121220.0,1.26331325]
[1760023580969,0.06532242,121230.0,121220.0,1.64909329]
[1760023581265,0.06532242,121230.0,121220.0,0.89425329]
[1760023581470,0.06532242,121230.0,121220.0,1.18073165]
[1760023581669,0.06532242,121230.0,121220.0,1.64905329]
[1760023582865,0.14777722,121230.0,121220.0,0.89425329]
[1760023583069,0.14777722,121230.0,121220.0,1.64889329]
[1760023583364,0.14777722,121230.0,121220.0,0.89425329]
[1760023583567,0.21163722,121230.0,121220.0,1.18053165]
[1760023583774,0.10419,121220.0,121210.0,0.3608]
[1760023583967,0.10419,121210.0,121200.0,0.74666004]
[1760023584162,0.10419,121210.0,121200.0,0.8548552]
[1760023584163,0.14579082,121210.0,121200.0,0.8548552]
[1760023584662,0.1227984,121210.0,121200.0,0.8548552]
[1760023584867,0.1866584,121210.0,121200.0,0.8548552]
[1760023585067,0.1866584,121210.0,121200.0,1.6096952]
[1760023585267,0.20595762,121210.0,121200.0,1.6096952]
[1760023585474,0.1227984,121210.0,121200.0,0.8548552]
[1760023585665,0.1227984,121210.0,121200.0,1.6096952]
[1760023586067,0.1227984,121210.0,121200.0,1.50160561]
[1760023586561,0.14140509,121210.0,121200.0,1.50160561]
[1760023586969,0.14140509,121210.0,121200.0,0.74676561]
[1760023587169,0.14140509,121210.0,121200.0,1.50152561]
[1760023587370,0.60526509,121210.0,121200.0,1.50140561]
[1760023587676,0.60526509,121210.0,121200.0,1.50136561]
[1760023588664,0.5227984,121210.0,121200.0,0.74676561]
[1760023588868,0.1227984,121210.0,121200.0,1.50136561]
[1760023590776,0.04033,121210.0,121200.0,1.58408081]
[1760023591472,0.04033,121210.0,121200.0,1.96992642]
[1760023591774,0.04033,121220.0,121210.0,0.0824684]
[1760023592073,0.04033,121220.0,121210.0,0.82923401]
[1760023592272,0.1227916,121220.0,121210.0,0.82923401]
[1760023592469,0.04033,121220.0,121210.0,0.82923401]
[1760023592675,0.1227863,121230.0,121220.0,0.0824616]
[1760023592874,0.1227863,121230.0,121220.0,1.65101909]
[1760023593877,0.1227863,121230.0,121220.0,1.56847749]
[1760023594069,0.1227863,121230.0,121220.0,0.81311749]
[1760023594376,0.1227863,121230.0,121220.0,1.56843749]
[1760023594576,0.1227863,121230.0,121220.0,1.65081909]
[1760023595274,0.1227863,121230.0,121220.0,0.89557909]
[1760023595469,0.04033,121230.0,121220.0,1.65073909]
[1760023596480,0.04033,121230.0,121220.0,1.65061909]
[1760023597381,0.1227848,121230.0,121220.0,1.65061909]
[1760023597970,0.04033,121230.0,121220.0,1.65061909]
[1760023599482,0.04033,121230.0,121220.0,0.89557909]
[1760023599679,0.1227827,121240.0,121230.0,0.0824548]
[1760023599881,0.1227827,121240.0,121230.0,0.82922041]
[1760023603797,0.1227827,121240.0,121230.0,0.74676561]
[1760023604094,0.1227827,121240.0,121230.0,1.50100561]
[1760023604296,0.1227827,121240.0,121230.0,1.58346041]
[1760023606295,0.1227827,121240.0,121230.0,1.69125412]
[1760023612198,0.1227827,121240.0,121230.0,1.44437446]
[1760023613502,0.1227827,121240.0,121230.0,1.36099966]
[1760023614197,0.1227827,121240.0,121230.0,1.69033412]
[1760023615899,0.1227827,121240.0,121230.0,0.3608]
[1760023616104,0.1865627,121240.0,121230.0,1.44322503]
[1760023616900,0.1865627,121240.0,121230.0,0.68998503]
[1760023617101,0.1227827,121240.0,121230.0,1.44314503]
[1760023618503,0.1227827,121240.0,121230.0,0.68998503]
[1760023618796,0.1227827,121240.0,121230.0,1.44314503]
[1760023619008,0.1227827,121240.0,121230.0,1.52559983]
[1760023620604,0.1227827,121240.0,121230.0,0.77243983]
[1760023620810,0.1227827,121240.0,121230.0,0.3608]
[1760023620997,0.1865627,121240.0,121230.0,0.3608]
[1760023621196,0.91574773,121240.0,121230.0,0.75316]
[1760023621406,0.5865627,121240.0,121230.0,0.75316]
[1760023621906,0.1842848,121230.0,121220.0,0.75633691]
[1760023622407,0.1842848,121230.0,121220.0,1.50949691]
[1760023623306,0.10183,121220.0,121200.0,0.3608]
[1760023623505,0.10183,121210.0,121200.0,0.3608]
[1760023623705,0.10183,121210.0,121200.0,1.44314503]
[1760023624306,0.10183,121210.0,121200.0,0.68998503]
[1760023624508,0.10183,121210.0,121200.0,1.52562023]
[1760023624810,0.03805,121210.0,121200.0,1.52562023]
[1760023625010,0.1205184,121210.0,121200.0,1.52562023]
[1760023625506,0.1205184,121210.0,121200.0,0.77246023]
[1760023625706,0.1205184,121210.0,121200.0,1.52562023]
[1760023625903,0.1205184,121210.0,121200.0,1.10164526]
[1760023626102,0.03805,121210.0,121200.0,1.85480526]
[1760023626710,0.03805,121210.0,121200.0,0.77246023]
[1760023626910,0.03805,121210.0,121200.0,1.52566023]
[1760023627211,0.10183,121210.0,121200.0,1.44318503]
[1760023627508,0.03805,121210.0,121200.0,1.44318503]
[1760023627913,0.05466302,121210.0,121200.0,0.68998503]
[1760023628209,0.11844302,121210.0,121200.0,1.44318503]
[1760023629007,0.11844302,121210.0,121200.0,0.68998503]
[1760023629211,0.11844302,121210.0,121200.0,1.44318503]
[1760023629808,0.11844302,121210.0,121200.0,0.68998503]
[1760023630010,0.11844302,121210.0,121200.0,1.44318503]
[1760023630313,0.11844302,121210.0,121200.0,0.68998503]
[1760023630511,0.10459,121200.0,121190.0,0.3608]
[1760023630811,0.10459,121200.0,121190.0,1.114]
[1760023631010,0.10459,121200.0,121190.0,1.44318503]
[1760023631612,0.10459,121200.0,121190.0,0.69098503]
[1760023631813,0.10459,121200.0,121190.0,1.44422503]
[1760023632010,0.10459,121200.0,121190.0,1.44522503]
[1760023632207,0.10459,121200.0,121190.0,0.69198503]
[1760023632402,0.10459,121200.0,121190.0,1.44522503]
[1760023633810,0.10459,121200.0,121190.0,0.69198503]
[1760023634010,0.03999,121200.0,121190.0,1.44522503]
[1760023634308,0.03999,121200.0,121190.0,0.69198503]
[1760023634514,0.10459,121200.0,121190.0,1.44522503]
[1760023635616,0.03999,121200.0,121190.0,1.52774703]
[1760023635817,0.1224652,121200.0,121190.0,1.52774703]
[1760023638115,0.1224652,121200.0,121190.0,0.77446703]
[1760023638314,0.1224652,121200.0,121190.0,1.44526503]
[1760023638811,0.1224652,121200.0,121190.0,0.77446703]
[1760023639018,0.1224652,121200.0,121190.0,1.52778703]
[1760023640517,0.1224652,121200.0,121190.0,1.44530503]
[1760023640721,0.1225052,121200.0,121190.0,1.44530503]
[1760023640918,0.03805,121230.0,121220.0,0.0824616]
[1760023641113,0.03999,121240.0,121230.0,0.0824548]
[1760023641315,0.03999,121250.0,121240.0,0.082448]
[1760023641515,0.03999,121250.0,121240.0,1.46241806]
[1760023642215,0.03999,121250.0,121240.0,4.27877806]
[1760023643018,0.03999,121250.0,121240.0,3.58960132]
[1760023643224,0.03999,121250.0,121240.0,4.34608132]
[1760023643723,0.03999,121250.0,121240.0,4.34708132]
[1760023644423,0.04003,121250.0,121240.0,4.34608132]
[1760023644623,0.04003,121250.0,121240.0,3.58960132]
[1760023644817,0.04003,121250.0,121240.0,4.34572132]
[1760023645024,0.04003,121250.0,121240.0,4.34552132]
[1760023647130,0.04003,121250.0,121240.0,1.20057629]
[1760023647331,0.1224712,121250.0,121240.0,1.95641629]
[1760023647629,0.04003,121250.0,121240.0,2.28560132]
[1760023647830,0.1224712,121250.0,121240.0,2.28560132]
[1760023648123,0.04003,121250.0,121240.0,2.28556132]
[1760023648319,0.1224712,121250.0,121240.0,2.28548132]
[1760023649726,0.04003,121250.0,121240.0,2.28548132]
[1760023650118,0.04003,121250.0,121240.0,1.52976132]
[1760023650323,0.04003,121250.0,121240.0,2.28520132]
[1760023650520,4e-05,121250.0,121240.0,1.92976132]
[1760023650725,4e-05,121250.0,121240.0,2.68516132]
[1760023650927,0.03999,121270.0,121260.0,0.0824344]
[1760023651231,0.03999,121270.0,121260.0,2.28929943]
[1760023651632,0.03999,121270.0,121260.0,1.53321943]
[1760023651830,0.03999,121270.0,121260.0,2.28925943]
[1760023653332,0.03999,121270.0,121260.0,2.28921943]
[1760023653534,0.03999,121270.0,121260.0,1.53321943]
[1760023653832,0.03999,121270.0,121260.0,2.28901943]
[1760023656631,0.03999,121270.0,121260.0,1.53321943]
[1760023656831,0.03999,121270.0,121260.0,2.28889943]
[1760023657734,0.03999,121270.0,121260.0,2.28849943]
[1760023659139,0.1224176,121270.0,121260.0,2.28849943]
[1760023659434,0.1224176,121270.0,121260.0,2.28829943]
[1760023660735,0.1224133,121280.0,121270.0,0.0824276]
[1760023660934,0.1224133,121280.0,121270.0,1.10159766]
[1760023661136,0.1224133,121280.0,121270.0,0.77241263]
[1760023661336,0.1224133,121280.0,121270.0,1.85647766]
[1760023661530,0.1224133,121280.0,121270.0,1.87355578]
[1760023661730,0.1224133,121280.0,121270.0,1.54437075]
[1760023662436,0.1224133,121280.0,121270.0,0.77241263]
[1760023662631,0.1234133,121280.0,121270.0,1.52709263]
[1760023663733,0.1234133,121280.0,121270.0,1.85627766]
[1760023664230,0.1234133,121280.0,121270.0,1.52709263]
[1760023665229,0.1234133,121280.0,121270.0,0.77241263]
[1760023665634,0.1234133,121280.0,121270.0,1.52681263]
[1760023668031,0.1234133,121280.0,121270.0,1.54365768]
[1760023668233,0.03999,121290.0,121280.0,0.0824208]
[1760023668438,0.03999,121290.0,121280.0,3.91539086]
[1760023668638,0.03999,121290.0,121280.0,1.10159086]
[1760023668639,0.122404,121290.0,121280.0,1.10159086]
[1760023668938,0.122404,121290.0,121280.0,1.44510503]
[1760023669236,0.522404,121290.0,121280.0,1.44510503]
[1760023669437,0.586044,121290.0,121280.0,1.44538503]
[1760023669633,0.587044,121290.0,121280.0,1.44538503]
[1760023670132,0.587044,121290.0,121280.0,0.77240583]
[1760023670339,0.587044,121290.0,121280.0,1.52780583]
[1760023670637,0.524404,121290.0,121280.0,1.52780583]
[1760023671734,0.524404,121290.0,121280.0,0.77240583]
[1760023671938,0.524404,121290.0,121280.0,1.44514503]
[1760023672638,0.587044,121290.0,121280.0,0.68998503]
[1760023672832,0.587044,121290.0,121280.0,1.5098022]
[1760023673028,0.587044,121290.0,121280.0,0.837103]